{"text_format":"1","workbook":"xlsx","n_sheets":4,"sheets":["Licentieblad","Mooi Werk Excel","Samenvatting","Dropdown"],"not_rendered":{"charts":7,"images":9,"macros":1,"external_links":1,"defined_names":17,"comments":0,"pivot_tables":0},"unopened":[],"bounds":{"document_bytes":16777216,"sheet_cells":100000,"rows_first":2000,"rows_last":500,"rows_between":2000,"halvings":0,"cell_chars":16384,"cell_head_chars":4096},"cells_cut":0,"cells_raw":0,"read":"whole","date_system":"1900"}

{"sheet":"Licentieblad","index":0,"n_rows":22,"n_cols":7,"rows_kept":22,"cut":false,"hidden":false,"merged":[]}
[]
[null,null,null,null,null,null,"WELKOM!"]
[null,null,null,null,null,null," Lees voor gebruik eerst deze bijsluiter:"]
[]
[null,null,null,null,null,null,"TECHNISCHE DETAILS"]
[null,null,null,null,null,null,"Om ‘Mooi Werk Excel’ de eerste keer te laten werken, klik (éénmalig) op de knop ‘Enable content’, ‘Bewerken inschakelen’, en/of ‘Inhoud inschakelen’."]
[null,null,null,null,null,null,"Dit programma werkt alleen in Excel 2016 (of meer recente ‘Office’ versies) en alleen in Windows. Apple ondersteunt de grafieken helaas niet."]
[null,null,null,null,null,null,"Gebruik op een normale laptop op desktop is aan te bevelen. Het is niet getest op mobiele versies van Excel op tablet of smartphone. "]
[null,null,null,null,null,null,"Je kunt je invoer niet opslaan in het Excel werkblad. Als je Excel afsluit ben je alles kwijt. Je kunt alles wel via PDF-print bewaren of aan jezelf mailen. "]
[]
[null,null,null,null,null,null,"PERSOONLIJKE DEMOVERSIE"]
[null,null,null,null,null,null,"Mooi Werk Excel is nog in ontwikkeling. Aan de werking kunnen geen rechten worden ontleend."]
[null,null,null,null,null,null,"Deze demoversie stellen we alvast 25 keer open voor persoonlijke en/of niet-commerciële doeleinden."]
[null,null,null,null,null,null,"Werkt het programma niet meer, dan heeft het deze limiet bereikt. Mail ons dan gerust voor nieuwe toegang."]
[]
[]
[null,null,null,null,null,null,{"$f":"IF(Dropdown!M2<25, \"Neem bij vragen of feedback contact op met: ‘info@debaaningenieurs.nl’.\", \"Neem voor ‘nieuwe’ toegang tot ‘Mooi Werk Excel’ contact op met: ‘info@debaaningenieurs.nl’.\")","v":"Neem bij vragen of feedback contact op met: ‘info@debaaningenieurs.nl’."}]
[null,null,null,null,null,null,{"$f":"IF(Dropdown!M2<25, \"Deze demoversie van ‘Mooi Werk Excel’ kan nog \" & MAX(0, 25-Dropdown!M2) & \" keer worden gebruikt.\", \"Voor niet-commercieel eigen gebruik krijg je zo spoedig mogelijk ‘opnieuw’ toegang.\")","v":"Deze demoversie van ‘Mooi Werk Excel’ kan nog 25 keer worden gebruikt."}]
[]
[]
[]
[null,null,null,null,null,null,"© 2018 Mooi Werk Excel"]

{"sheet":"Mooi Werk Excel","index":1,"n_rows":405,"n_cols":51,"rows_kept":405,"cut":false,"hidden":true,"merged":[[12,5,12,14],[369,2,369,6],[367,8,368,15],[369,8,369,15],[385,17,385,23],[380,17,383,23],[379,17,379,23],[367,17,368,23],[370,10,370,14],[369,17,369,23],[370,19,370,23],[371,17,371,23],[372,17,372,23],[380,8,383,15],[376,17,376,23],[375,17,375,23],[373,8,373,15],[373,17,373,23],[404,10,404,24],[375,8,375,15],[392,2,395,6],[391,17,391,23],[392,17,395,23],[391,2,391,6],[386,2,389,6],[392,8,395,15],[386,17,389,23],[391,8,391,15],[386,8,389,15],[376,8,376,15],[182,2,182,4],[228,2,228,4],[274,2,274,4],[379,8,379,15],[385,8,385,15],[385,2,385,6],[380,2,383,6],[379,2,379,6],[367,2,368,6],[371,2,371,6],[372,2,372,6],[373,2,373,6],[375,2,375,6],[376,2,376,6],[371,8,371,15],[372,8,372,15]]}
[]
[null,"Met Mooi Werk Excel kun je zelf een analyse maken van je eigen werk en taakfit. Je volgt 8 stappen naar Mooier Werk."]
[null,"Onderstaand werkblad is ingevuld voor de casus ‘Meike’, zoals beschreven in hoofdstuk 8 van het boek Mooier Werk. "]
[null,"Mooi Werk Excel toont je in 30-60 minuten hoe mooi je werk is. Waar past het goed? Waar minder? Wat kan beter?"]
[null,"De alvast ingevulde velden die je hieronder zult aantreffen volgen dus het taakprofiel van:"]
[]
[]
[null,null,"Meike (Redacteur bij een tijdschrift)"]
[]
[null,"Maak van Meike’s taakprofiel je persoonlijk profiel door de tekst en getallen in de velden aan te passen aan jouw werk."]
[null,"Tip: neem hoofdstuk 8 van het boek Mooier Werk erbij, dan snap je beter wat je moet doen en wat het betekent."]
[]
[null,null,null,null,"Heb je geen boek? ","Klik hier om te bestellen via Uitgeverij Boom."]
[]
[]
[]
[]
[]
[]
[]
[]
[]
[]
[]
[]
[]
[]
[]
[]
[]
[]
[]
[]
[]
[]
[]
[]
[]
[]
[]
[]
[]
[null,null,null,"STAP 1 | TAAKDIAGNOSE"]
[null,null,null,"UIT WELKE VERSCHILLENDE TAKEN BESTAAT JE HUIDIGE BAAN?"]
[]
[null,null,null,null,null,null,"Noteer je afzonderlijke taken:",null,null,null,null,null,null,null,null,null,null,null,null,null,null,null,null,null,null,null,null,null,null,null,null,null,null,null,null,null,null,null,null,null,null,null,null,null,null,null,"Backup"]
[null,null,null,null,1,null,"Schrijfwerk",null,8.3333333333333339,null,null,null,null,null,null,null,null,null,null,null,null,null,null,null,null,null,null,null,null,null,null,null,null,null,null,null,null,null,null,null,null,null,null,null,null,null,"Schrijfwerk"]
[null,null,null,null,2,null,"Vergaderen",null,8.3333333333333339,null,null,null,null,null,null,null,null,null,null,null,null,null,null,null,null,null,null,null,null,null,null,null,null,null,null,null,null,null,null,null,null,null,null,null,null,null,"Vergaderen"]
[null,null,null,null,3,null,"Beeld zoeken",null,8.3333333333333339,null,null,null,null,null,null,null,null,null,null,null,null,null,null,null,null,null,null,null,null,null,null,null,null,null,null,null,null,null,null,null,null,null,null,null,null,null,"Beeld zoeken"]
[null,null,null,null,4,null,"Interviews",null,8.3333333333333339,null,null,null,null,null,null,null,null,null,null,null,null,null,null,null,null,null,null,null,null,null,null,null,null,null,null,null,null,null,null,null,null,null,null,null,null,null,"Interviews"]
[null,null,null,null,5,null,"Social Media",null,8.3333333333333339,null,null,null,null,null,null,null,null,null,null,null,null,null,null,null,null,null,null,null,null,null,null,null,null,null,null,null,null,null,null,null,null,null,null,null,null,null,"Social Media"]
[null,null,null,null,6,null,"Website",null,8.3333333333333339,null,null,null,null,null,null,null,null,null,null,null,null,null,null,null,null,null,null,null,null,null,null,null,null,null,null,null,null,null,null,null,null,null,null,null,null,null,"Website"]
[null,null,null,null,7,null,"Nieuws bijhouden",null,8.3333333333333339,null,null,null,null,null,null,null,null,null,null,null,null,null,null,null,null,null,null,null,null,null,null,null,null,null,null,null,null,null,null,null,null,null,null,null,null,null,"Nieuws bijhouden"]
[null,null,null,null,8,null,"Nieuwsbrief",null,8.3333333333333339,null,null,null,null,null,null,null,null,null,null,null,null,null,null,null,null,null,null,null,null,null,null,null,null,null,null,null,null,null,null,null,null,null,null,null,null,null,"Nieuwsbrief"]
[null,null,null,null,9,null,"Research",null,8.3333333333333339,null,null,null,null,null,null,null,null,null,null,null,null,null,null,null,null,null,null,null,null,null,null,null,null,null,null,null,null,null,null,null,null,null,null,null,null,null,"Research"]
[null,null,null,null,10,null,"Andere bladen",null,8.3333333333333339,null,null,null,null,null,null,null,null,null,null,null,null,null,null,null,null,null,null,null,null,null,null,null,null,null,null,null,null,null,null,null,null,null,null,null,null,null,"Andere bladen"]
[null,null,null,null,11,null,"Telefoon",null,8.3333333333333339,null,null,null,null,null,null,null,null,null,null,null,null,null,null,null,null,null,null,null,null,null,null,null,null,null,null,null,null,null,null,null,null,null,null,null,null,null,"Telefoon"]
[null,null,null,null,12,null,"Knipselmap",null,8.3333333333333339,null,null,null,null,null,null,null,null,null,null,null,null,null,null,null,null,null,null,null,null,null,null,null,null,null,null,null,null,null,null,null,null,null,null,null,null,null,"Knipselmap"]
[]
[]
[]
[]
[]
[]
[]
[]
[]
[]
[]
[]
[]
[]
[]
[]
[]
[]
[]
[]
[]
[]
[]
[]
[]
[]
[]
[]
[]
[]
[null,null,null,"STAP 2 | TAAKDIAGRAM"]
[null,null,null,"WAT IS JE HUIDIGE TIJDSBESTEDING AAN ELK VAN DEZE TAKEN? (OPGETELD CA. 100%)"]
[]
[null,null,null,null,null,null,"Afzonderlijke taken",null,"Noteer %:",null,null,"p/week"]
[null,null,null,null,null,null,"Schrijfwerk",null,25,{"$f":"IF(G93<>\"\", \"%\", \"\")","v":"%"},{"$f":"IF(AND(G$107<>\"\", I93<>\"\"), G$107/100*I93, \"\")","v":10},{"$f":"IF(AND(G$107<>\"\", I93<>\"\"), \"uur\", \"\")","v":"uur"}]
[null,null,null,null,null,null,"Vergaderen",null,15.00001,{"$f":"IF(G94<>\"\", \"%\", \"\")","v":"%"},{"$f":"IF(AND(G$107<>\"\", I94<>\"\"), G$107/100*I94, \"\")","v":6.0000040000000006},{"$f":"IF(AND(G$107<>\"\", I94<>\"\"), \"uur\", \"\")","v":"uur"}]
[null,null,null,null,null,null,"Beeld zoeken",null,15,"%",6,"uur"]
[null,null,null,null,null,null,"Social Media",null,10.00001,"%",4.0000039999999997,"uur"]
[null,null,null,null,null,null,"Website",null,10,"%",4,"uur"]
[null,null,null,null,null,null,"Interviews",null,5.0000099999999996,"%",2.0000040000000001,"uur"]
[null,null,null,null,null,null,"Nieuws bijhouden",null,5,"%",2,"uur"]
[null,null,null,null,null,null,"Nieuwsbrief",null,3.0000399999999998,"%",1.200016,"uur"]
[null,null,null,null,null,null,"Research",null,3.0000300000000002,"%",1.2000120000000001,"uur"]
[null,null,null,null,null,null,"Andere bladen",null,3.0000200000000001,"%",1.2000080000000002,"uur"]
[null,null,null,null,null,null,"Telefoon",null,3.0000100000000001,"%",1.2000040000000001,"uur"]
[null,null,null,null,null,null,"Knipselmap",null,3,"%",1.2000000000000002,"uur"]
[]
[null,null,null,null,null,null,"Noteer je werkuren p/week:"]
[null,null,null,null,null,null,40,null,{"$f":"IF(SUM(I93:I106)>0, SUM(I93:I106), \"\")","v":100.00013000000001},"% Totaal"]
[]
[]
[]
[]
[]
[]
[]
[]
[]
[]
[]
[]
[]
[]
[]
[]
[]
[]
[]
[]
[]
[]
[]
[]
[]
[]
[]
[null,null,null,"STAP 3 | KERNTAKEN"]
[null,null,null,"WAT ZIE JE WEL EN NIET ALS DE KERN VAN JE WERK? WAT BEN JE EXTRA GAAN DOEN?"]
[]
[null,null,null,null,"Noteer: Kerntaak?",null,"Afzonderlijke taken",null,"Tijd %",null,null,"p/week"]
[null,null,null,null,"Extra taak",null,"Social Media",null,{"$f":"IF(E139=\"\", \"\", IFERROR(IF(VLOOKUP(G139, G$93:I$104, 3, 0)>0, VLOOKUP(G139, G$93:I$104, 3, 0), \"\"), \"\"))","v":10.00001},{"$f":"IF(G139<>\"\", \"%\", \"\")","v":"%"},{"$f":"IF(AND(G$107<>\"\", I139<>\"\"), G$107/100*I139, \"\")","v":4.0000039999999997},{"$f":"IF(AND(G$107<>\"\", I139<>\"\"), \"uur\", \"\")","v":"uur"}]
[null,null,null,null,"Extra taak",null,"Website",null,10,{"$f":"IF(G140<>\"\", \"%\", \"\")","v":"%"},{"$f":"IF(AND(G$107<>\"\", I140<>\"\"), G$107/100*I140, \"\")","v":4},{"$f":"IF(AND(G$107<>\"\", I140<>\"\"), \"uur\", \"\")","v":"uur"}]
[null,null,null,null,"Extra taak",null,"Nieuws bijhouden",null,5,"%",2,"uur"]
[null,null,null,null,"Extra taak",null,"Nieuwsbrief",null,3.0000399999999998,"%",1.200016,"uur"]
[null,null,null,null,"Kerntaak",null,"Schrijfwerk",null,25,"%",10,"uur"]
[null,null,null,null,"Kerntaak",null,"Beeld zoeken",null,15,"%",6,"uur"]
[null,null,null,null,"Kerntaak",null,"Interviews",null,5.0000099999999996,"%",2.0000040000000001,"uur"]
[null,null,null,null,"Kerntaak",null,"Research",null,3.0000300000000002,"%",1.2000120000000001,"uur"]
[null,null,null,null,"Niet-Kerntaak",null,"Vergaderen",null,15.00001,"%",6.0000040000000006,"uur"]
[null,null,null,null,"Niet-Kerntaak",null,"Andere bladen",null,3.0000200000000001,"%",1.2000080000000002,"uur"]
[null,null,null,null,"Niet-Kerntaak",null,"Telefoon",null,3.0000100000000001,"%",1.2000040000000001,"uur"]
[null,null,null,null,"Niet-Kerntaak",null,"Knipselmap",null,3,"%",1.2000000000000002,"uur"]
[]
[null,null,null,null,null,null,"Aantal werkuren p/week"]
[null,null,null,null,null,null,{"$f":"IF(G$107<>\"\", G$107, \"\")","v":40},null,{"$f":"IF(I$107>0, I$107, \"\")","v":100.00013000000001},"% Totaal"]
[]
[]
[]
[]
[]
[]
[]
[]
[]
[]
[]
[]
[]
[]
[]
[]
[]
[]
[]
[]
[]
[]
[]
[]
[]
[]
[]
[null,"STAP 4 | TAAKDYNAMIEK"]
[null,"WAT ZIJN RELATIEF NIEUWE TAKEN IN JE WERK EN WELKE TAKEN GROEIEN OF KRIMPEN QUA TIJD?"]
[null,null,"Noteer:"]
[null,null,"Begin/Later?","&","Krimp/Groei?",null,"Afzonderlijke taken",null,"Tijd %",null,null,"p/week",null,null,null,null,null,null,null,null,null,null,null,null,null,null,null,null,null,null,null,null,null,null,null,null,null,null,null,null,null,null,null,null,null,null,"Taakdynamiek",null,"Afzonderlijke taken",null,"Tijd %"]
[null,null,"Later erbij",null,"GROEITAAK",null,"Social Media",null,{"$f":"IF(OR(C185=\"\",E185=\"\"), \"\", IFERROR(IF(VLOOKUP(G185, G$93:I$104, 3, 0)>0, VLOOKUP(G185, G$93:I$104, 3, 0), \"\"), \"\"))","v":10.00001},{"$f":"IF(G185<>\"\", \"%\", \"\")","v":"%"},{"$f":"IF(AND(G$107<>\"\", I185<>\"\"), G$107/100*I185, \"\")","v":4.0000039999999997},{"$f":"IF(AND(G$107<>\"\", I185<>\"\"), \"uur\", \"\")","v":"uur"},null,null,null,null,null,null,null,null,null,null,null,null,null,null,null,null,null,null,null,null,null,null,null,null,null,null,null,null,null,null,null,null,null,null,{"$f":" IF(AND(C185<>\"\", E185<>\"\", G185<>\"\"), C185 & \" + \" & IF(E185=\"krimptaak\", \"krimp\", \"groei\"), \"\")","v":"Later erbij + groei"},null,{"$f":"IF(AND(C185<>\"\", E185<>\"\", G185<>\"\"), G185, \"\")","v":"Social Media"},null,{"$f":"IF(AND(C185<>\"\", E185<>\"\", G185<>\"\", I185<>\"\"), I185, \"\")","v":10.00001}]
[null,null,"Later erbij",null,"GROEITAAK",null,"Website",null,10,"%",4,"uur",null,null,null,null,null,null,null,null,null,null,null,null,null,null,null,null,null,null,null,null,null,null,null,null,null,null,null,null,null,null,null,null,null,null,"Later erbij + groei",null,"Website",null,10]
[null,null,"Later erbij",null,"GROEITAAK",null,"Nieuws bijhouden",null,5,"%",2,"uur",null,null,null,null,null,null,null,null,null,null,null,null,null,null,null,null,null,null,null,null,null,null,null,null,null,null,null,null,null,null,null,null,null,null,"Later erbij + groei",null,"Nieuws bijhouden",null,5]
[null,null,"Later erbij",null,"GROEITAAK",null,"Nieuwsbrief",null,3.0000399999999998,"%",1.200016,"uur",null,null,null,null,null,null,null,null,null,null,null,null,null,null,null,null,null,null,null,null,null,null,null,null,null,null,null,null,null,null,null,null,null,null,"Later erbij + groei",null,"Nieuwsbrief",null,3.0000399999999998]
[null,null,"Later erbij",null,"krimptaak",null,"Andere bladen",null,3.0000200000000001,"%",1.2000080000000002,"uur",null,null,null,null,null,null,null,null,null,null,null,null,null,null,null,null,null,null,null,null,null,null,null,null,null,null,null,null,null,null,null,null,null,null,"Later erbij + krimp",null,"Andere bladen",null,3.0000200000000001]
[null,null,"Later erbij",null,"krimptaak",null,"Knipselmap",null,3,"%",1.2000000000000002,"uur",null,null,null,null,null,null,null,null,null,null,null,null,null,null,null,null,null,null,null,null,null,null,null,null,null,null,null,null,null,null,null,null,null,null,"Later erbij + krimp",null,"Knipselmap",null,3]
[null,null,"Vanaf begin",null,"GROEITAAK",null,"Vergaderen",null,15.00001,"%",6.0000040000000006,"uur",null,null,null,null,null,null,null,null,null,null,null,null,null,null,null,null,null,null,null,null,null,null,null,null,null,null,null,null,null,null,null,null,null,null,"Vanaf begin + groei",null,"Vergaderen",null,15.00001]
[null,null,"Vanaf begin",null,"GROEITAAK",null,"Interviews",null,5.0000099999999996,"%",2.0000040000000001,"uur",null,null,null,null,null,null,null,null,null,null,null,null,null,null,null,null,null,null,null,null,null,null,null,null,null,null,null,null,null,null,null,null,null,null,"Vanaf begin + groei",null,"Interviews",null,5.0000099999999996]
[null,null,"Vanaf begin",null,"GROEITAAK",null,"Research",null,3.0000300000000002,"%",1.2000120000000001,"uur",null,null,null,null,null,null,null,null,null,null,null,null,null,null,null,null,null,null,null,null,null,null,null,null,null,null,null,null,null,null,null,null,null,null,"Vanaf begin + groei",null,"Research",null,3.0000300000000002]
[null,null,"Vanaf begin",null,"GROEITAAK",null,"Telefoon",null,3.0000100000000001,"%",1.2000040000000001,"uur",null,null,null,null,null,null,null,null,null,null,null,null,null,null,null,null,null,null,null,null,null,null,null,null,null,null,null,null,null,null,null,null,null,null,"Vanaf begin + groei",null,"Telefoon",null,3.0000100000000001]
[null,null,"Vanaf begin",null,"krimptaak",null,"Schrijfwerk",null,25,"%",10,"uur",null,null,null,null,null,null,null,null,null,null,null,null,null,null,null,null,null,null,null,null,null,null,null,null,null,null,null,null,null,null,null,null,null,null,"Vanaf begin + krimp",null,"Schrijfwerk",null,25]
[null,null,"Vanaf begin",null,"krimptaak",null,"Beeld zoeken",null,15,"%",6,"uur",null,null,null,null,null,null,null,null,null,null,null,null,null,null,null,null,null,null,null,null,null,null,null,null,null,null,null,null,null,null,null,null,null,null,"Vanaf begin + krimp",null,"Beeld zoeken",null,15]
[]
[null,null,null,null,null,null,"Aantal werkuren p/week"]
[null,null,null,null,null,null,{"$f":"IF(G$107<>\"\", G$107, \"\")","v":40},null,{"$f":"IF(I$107>0, I$107, \"\")","v":100.00013000000001},"% Totaal"]
[]
[]
[]
[]
[]
[]
[]
[]
[]
[]
[]
[]
[]
[]
[]
[]
[]
[]
[]
[]
[]
[]
[]
[]
[]
[]
[]
[null,"STAP 5 | TAAKFIT"]
[null,"WAT IS DE BALANS IN DE MATE WAAROP ELKE TAAK JOU ENERGIE GEEFT EN/OF ENERGIE KOST?"]
[null,null,"Noteer:"]
[null,null,"Geeft Energie?","&","Kost Energie?",null,"Afzonderlijke taken",null,"Tijd %",null,null,"p/week",null,null,"Taakfit",null,null,null,null,null,null,null,null,null,null,null,null,null,null,null,null,null,null,null,null,null,null,null,null,null,null,null,null,null,null,null,"Taakfit",null,"Afzonderlijke taken",null,"Tijd %"]
[null,null,"Geeft veel energie",null,"Kost veel energie",null,"Schrijfwerk",null,{"$f":"IF(OR(C231=\"\",E231=\"\"), \"\", IFERROR(IF(VLOOKUP(G231, G$93:I$104, 3, 0)>0, VLOOKUP(G231, G$93:I$104, 3, 0), \"\"), \"\"))","v":25},{"$f":"IF(G231<>\"\", \"%\", \"\")","v":"%"},{"$f":"IF(AND(G$107<>\"\", I231<>\"\"), G$107/100*I231, \"\")","v":10},{"$f":"IF(AND(G$107<>\"\", I231<>\"\"), \"uur\", \"\")","v":"uur"},null,null,{"$f":"IF(AU231<>\"\", AU231, \"\")","v":"2-Faced"},null,null,null,null,null,null,null,null,null,null,null,null,null,null,null,null,null,null,null,null,null,null,null,null,null,null,null,null,null,null,null,{"$f":"IF(AND(C231<>\"\", E231<>\"\", G231<>\"\"), IF(C231=\"Geeft veel energie\", IF(E231=\"Kost weinig energie\", \"Mooi\", \"2-Faced\"), IF(E231=\"Kost weinig energie\", \"Leeg\", \"Risico\")), \"\")","v":"2-Faced"},null,{"$f":"IF(AND(C231<>\"\", E231<>\"\", G231<>\"\"), G231, \"\")","v":"Schrijfwerk"},null,{"$f":"IF(AND(C231<>\"\", E231<>\"\", G231<>\"\", I231<>\"\"), I231, \"\")","v":25}]
[null,null,"Geeft veel energie",null,"Kost veel energie",null,"Nieuws bijhouden",null,5,"%",2,"uur",null,null,"2-Faced",null,null,null,null,null,null,null,null,null,null,null,null,null,null,null,null,null,null,null,null,null,null,null,null,null,null,null,null,null,null,null,"2-Faced",null,"Nieuws bijhouden",null,5]
[null,null,"Geeft veel energie",null,"Kost veel energie",null,"Research",null,3.0000300000000002,"%",1.2000120000000001,"uur",null,null,"2-Faced",null,null,null,null,null,null,null,null,null,null,null,null,null,null,null,null,null,null,null,null,null,null,null,null,null,null,null,null,null,null,null,"2-Faced",null,"Research",null,3.0000300000000002]
[null,null,"Geeft veel energie",null,"Kost weinig energie",null,"Beeld zoeken",null,15,"%",6,"uur",null,null,"Mooi",null,null,null,null,null,null,null,null,null,null,null,null,null,null,null,null,null,null,null,null,null,null,null,null,null,null,null,null,null,null,null,"Mooi",null,"Beeld zoeken",null,15]
[null,null,"Geeft veel energie",null,"Kost weinig energie",null,"Social Media",null,10.00001,"%",4.0000039999999997,"uur",null,null,"Mooi",null,null,null,null,null,null,null,null,null,null,null,null,null,null,null,null,null,null,null,null,null,null,null,null,null,null,null,null,null,null,null,"Mooi",null,"Social Media",null,10.00001]
[null,null,"Geeft veel energie",null,"Kost weinig energie",null,"Website",null,10,"%",4,"uur",null,null,"Mooi",null,null,null,null,null,null,null,null,null,null,null,null,null,null,null,null,null,null,null,null,null,null,null,null,null,null,null,null,null,null,null,"Mooi",null,"Website",null,10]
[null,null,"Geeft veel energie",null,"Kost weinig energie",null,"Nieuwsbrief",null,3.0000399999999998,"%",1.200016,"uur",null,null,"Mooi",null,null,null,null,null,null,null,null,null,null,null,null,null,null,null,null,null,null,null,null,null,null,null,null,null,null,null,null,null,null,null,"Mooi",null,"Nieuwsbrief",null,3.0000399999999998]
[null,null,"Geeft weinig energie",null,"Kost veel energie",null,"Vergaderen",null,15.00001,"%",6.0000040000000006,"uur",null,null,"Risico",null,null,null,null,null,null,null,null,null,null,null,null,null,null,null,null,null,null,null,null,null,null,null,null,null,null,null,null,null,null,null,"Risico",null,"Vergaderen",null,15.00001]
[null,null,"Geeft weinig energie",null,"Kost veel energie",null,"Interviews",null,5.0000099999999996,"%",2.0000040000000001,"uur",null,null,"Risico",null,null,null,null,null,null,null,null,null,null,null,null,null,null,null,null,null,null,null,null,null,null,null,null,null,null,null,null,null,null,null,"Risico",null,"Interviews",null,5.0000099999999996]
[null,null,"Geeft weinig energie",null,"Kost weinig energie",null,"Andere bladen",null,3.0000200000000001,"%",1.2000080000000002,"uur",null,null,"Leeg",null,null,null,null,null,null,null,null,null,null,null,null,null,null,null,null,null,null,null,null,null,null,null,null,null,null,null,null,null,null,null,"Leeg",null,"Andere bladen",null,3.0000200000000001]
[null,null,"Geeft weinig energie",null,"Kost weinig energie",null,"Telefoon",null,3.0000100000000001,"%",1.2000040000000001,"uur",null,null,"Leeg",null,null,null,null,null,null,null,null,null,null,null,null,null,null,null,null,null,null,null,null,null,null,null,null,null,null,null,null,null,null,null,"Leeg",null,"Telefoon",null,3.0000100000000001]
[null,null,"Geeft weinig energie",null,"Kost weinig energie",null,"Knipselmap",null,3,"%",1.2000000000000002,"uur",null,null,"Leeg",null,null,null,null,null,null,null,null,null,null,null,null,null,null,null,null,null,null,null,null,null,null,null,null,null,null,null,null,null,null,null,"Leeg",null,"Knipselmap",null,3]
[]
[null,null,null,null,null,null,"Aantal werkuren p/week"]
[null,null,null,null,null,null,{"$f":"IF(G$107<>\"\", G$107, \"\")","v":40},null,{"$f":"IF(I$107>0, I$107, \"\")","v":100.00013000000001},"% Totaal"]
[]
[]
[]
[]
[]
[]
[]
[]
[]
[]
[]
[]
[]
[]
[]
[]
[]
[]
[]
[]
[]
[]
[]
[]
[]
[]
[]
[null,"STAP 6 | TAAKTOEKOMST"]
[null,"WELKE TAKEN KUN JE OVER 2 JAAR NOG GOED EN ZOU JE NOG GRAAG WILLEN BLIJVEN DOEN? WELKE NIET?"]
[null,null,"Noteer:"]
[null,null,"(Minder) willen?","&","(Slechter) kunnen?",null,"Afzonderlijke taken",null,"Tijd %",null,null,"p/week",null,null,null,null,null,null,null,null,null,null,null,null,null,null,null,null,null,null,null,null,null,null,null,null,null,null,null,null,null,null,null,null,null,null,"Taaktoekomst",null,"Afzonderlijke taken",null,"Tijd %"]
[null,null,"Wil ik minder (−)",null,"Kan ik goed (+)",null,"Interviews",null,{"$f":"IF(OR(C277=\"\",E277=\"\"), \"\", IFERROR(IF(VLOOKUP(G277, G$93:I$104, 3, 0)>0, VLOOKUP(G277, G$93:I$104, 3, 0), \"\"), \"\"))","v":5.0000099999999996},{"$f":"IF(G277<>\"\", \"%\", \"\")","v":"%"},{"$f":"IF(AND(G$107<>\"\", I277<>\"\"), G$107/100*I277, \"\")","v":2.0000040000000001},{"$f":"IF(AND(G$107<>\"\", I277<>\"\"), \"uur\", \"\")","v":"uur"},null,null,null,null,null,null,null,null,null,null,null,null,null,null,null,null,null,null,null,null,null,null,null,null,null,null,null,null,null,null,null,null,null,null,{"$f":"IF(AND(C277<>\"\", E277<>\"\", G277<>\"\"), IF(C277=\"Wil ik nog (+)\", \"Willen (+)\", \"Willen (−)\") & \" \" & IF(E277=\"Kan ik goed (+)\", \"Kunnen (+)\", \"Kunnen (−)\"), \"\")","v":"Willen (−) Kunnen (+)"},null,{"$f":"IF(AND(C277<>\"\", E277<>\"\", G277<>\"\"), G277, \"\")","v":"Interviews"},null,{"$f":"IF(AND(C277<>\"\", E277<>\"\", G277<>\"\", I277<>\"\"), I277, \"\")","v":5.0000099999999996}]
[null,null,"Wil ik minder (−)",null,"Kan ik goed (+)",null,"Research",null,3.0000300000000002,"%",1.2000120000000001,"uur",null,null,null,null,null,null,null,null,null,null,null,null,null,null,null,null,null,null,null,null,null,null,null,null,null,null,null,null,null,null,null,null,null,null,"Willen (−) Kunnen (+)",null,"Research",null,3.0000300000000002]
[null,null,"Wil ik minder (−)",null,"Kan ik slechter (−)",null,"Vergaderen",null,15.00001,"%",6.0000040000000006,"uur",null,null,null,null,null,null,null,null,null,null,null,null,null,null,null,null,null,null,null,null,null,null,null,null,null,null,null,null,null,null,null,null,null,null,"Willen (−) Kunnen (−)",null,"Vergaderen",null,15.00001]
[null,null,"Wil ik minder (−)",null,"Kan ik slechter (−)",null,"Telefoon",null,3.0000100000000001,"%",1.2000040000000001,"uur",null,null,null,null,null,null,null,null,null,null,null,null,null,null,null,null,null,null,null,null,null,null,null,null,null,null,null,null,null,null,null,null,null,null,"Willen (−) Kunnen (−)",null,"Telefoon",null,3.0000100000000001]
[null,null,"Wil ik minder (−)",null,"Kan ik slechter (−)",null,"Knipselmap",null,3,"%",1.2000000000000002,"uur",null,null,null,null,null,null,null,null,null,null,null,null,null,null,null,null,null,null,null,null,null,null,null,null,null,null,null,null,null,null,null,null,null,null,"Willen (−) Kunnen (−)",null,"Knipselmap",null,3]
[null,null,"Wil ik nog (+)",null,"Kan ik goed (+)",null,"Beeld zoeken",null,15,"%",6,"uur",null,null,null,null,null,null,null,null,null,null,null,null,null,null,null,null,null,null,null,null,null,null,null,null,null,null,null,null,null,null,null,null,null,null,"Willen (+) Kunnen (+)",null,"Beeld zoeken",null,15]
[null,null,"Wil ik nog (+)",null,"Kan ik goed (+)",null,"Social Media",null,10.00001,"%",4.0000039999999997,"uur",null,null,null,null,null,null,null,null,null,null,null,null,null,null,null,null,null,null,null,null,null,null,null,null,null,null,null,null,null,null,null,null,null,null,"Willen (+) Kunnen (+)",null,"Social Media",null,10.00001]
[null,null,"Wil ik nog (+)",null,"Kan ik goed (+)",null,"Website",null,10,"%",4,"uur",null,null,null,null,null,null,null,null,null,null,null,null,null,null,null,null,null,null,null,null,null,null,null,null,null,null,null,null,null,null,null,null,null,null,"Willen (+) Kunnen (+)",null,"Website",null,10]
[null,null,"Wil ik nog (+)",null,"Kan ik goed (+)",null,"Nieuws bijhouden",null,5,"%",2,"uur",null,null,null,null,null,null,null,null,null,null,null,null,null,null,null,null,null,null,null,null,null,null,null,null,null,null,null,null,null,null,null,null,null,null,"Willen (+) Kunnen (+)",null,"Nieuws bijhouden",null,5]
[null,null,"Wil ik nog (+)",null,"Kan ik goed (+)",null,"Nieuwsbrief",null,3.0000399999999998,"%",1.200016,"uur",null,null,null,null,null,null,null,null,null,null,null,null,null,null,null,null,null,null,null,null,null,null,null,null,null,null,null,null,null,null,null,null,null,null,"Willen (+) Kunnen (+)",null,"Nieuwsbrief",null,3.0000399999999998]
[null,null,"Wil ik nog (+)",null,"Kan ik goed (+)",null,"Andere bladen",null,3.0000200000000001,"%",1.2000080000000002,"uur",null,null,null,null,null,null,null,null,null,null,null,null,null,null,null,null,null,null,null,null,null,null,null,null,null,null,null,null,null,null,null,null,null,null,"Willen (+) Kunnen (+)",null,"Andere bladen",null,3.0000200000000001]
[null,null,"Wil ik nog (+)",null,"Kan ik slechter (−)",null,"Schrijfwerk",null,25,"%",10,"uur",null,null,null,null,null,null,null,null,null,null,null,null,null,null,null,null,null,null,null,null,null,null,null,null,null,null,null,null,null,null,null,null,null,null,"Willen (+) Kunnen (−)",null,"Schrijfwerk",null,25]
[]
[null,null,null,null,null,null,"Aantal werkuren p/week"]
[null,null,null,null,null,null,{"$f":"IF(G$107<>\"\", G$107, \"\")","v":40},null,{"$f":"IF(I$107>0, I$107, \"\")","v":100.00013000000001},"% Totaal"]
[]
[]
[]
[]
[]
[]
[]
[]
[]
[]
[]
[]
[]
[]
[]
[]
[]
[]
[]
[]
[]
[]
[]
[]
[]
[]
[]
[null,"STAP 7 | SLEUTELKEUZE EN SLEUTELRICHTING"]
[null,"MET WELKE AANPASSING(EN) AAN WELKE TOP-3 TAKEN WENS JE JOUW WERK ÉCHT MOOIER TE MAKEN?"]
[]
[null,null,"Sleutelwens?",null,"Afzonderlijke taken",null,"Noteer: Sleutelrichting?",null,"Tijd %",null,null,"p/week"]
[null,null,{"$f":"IF(E323<>\"\", IF(G323<>\"x\", \"Sleutelwens\", \"Geen sleutelwens\"), \"\")","v":"Sleutelwens"},null,"Schrijfwerk",null,"Anders",null,{"$f":"IFERROR(IF(VLOOKUP(E323, G$93:I$104, 3, 0)>0, VLOOKUP(E323, G$93:I$104, 3, 0), \"\"), \"\")","v":25},{"$f":"IF(E323<>\"\", \"%\", \"\")","v":"%"},{"$f":"IF(AND(G$107<>\"\", I323<>\"\"), G$107/100*I323, \"\")","v":10},{"$f":"IF(AND(G$107<>\"\", I323<>\"\"), \"uur\", \"\")","v":"uur"},null,{"$f":"IF(E323<>\"\", 1, 0)","v":1}]
[null,null,"Sleutelwens",null,"Social Media",null,"Groter",null,10.00001,{"$f":"IF(E324<>\"\", \"%\", \"\")","v":"%"},{"$f":"IF(AND(G$107<>\"\", I324<>\"\"), G$107/100*I324, \"\")","v":4.0000039999999997},{"$f":"IF(AND(G$107<>\"\", I324<>\"\"), \"uur\", \"\")","v":"uur"},null,{"$f":"IF(E324<>\"\", 1, 0)","v":1}]
[null,null,"Sleutelwens",null,"Interviews",null,"Kleiner",null,5.0000099999999996,"%",2.0000040000000001,"uur",null,1]
[null,null,"Geen sleutelwens",null,"Vergaderen",null,"x",null,15.00001,"%",6.0000040000000006,"uur",null,1]
[null,null,"Geen sleutelwens",null,"Beeld zoeken",null,"x",null,15,"%",6,"uur",null,1]
[null,null,"Geen sleutelwens",null,"Website",null,"x",null,10,"%",4,"uur",null,1]
[null,null,"Geen sleutelwens",null,"Nieuws bijhouden",null,"x",null,5,"%",2,"uur",null,1]
[null,null,"Geen sleutelwens",null,"Nieuwsbrief",null,"x",null,3.0000399999999998,"%",1.200016,"uur",null,1]
[null,null,"Geen sleutelwens",null,"Research",null,"x",null,3.0000300000000002,"%",1.2000120000000001,"uur",null,1]
[null,null,"Geen sleutelwens",null,"Andere bladen",null,"x",null,3.0000200000000001,"%",1.2000080000000002,"uur",null,1]
[null,null,"Geen sleutelwens",null,"Telefoon",null,"x",null,3.0000100000000001,"%",1.2000040000000001,"uur",null,1]
[null,null,"Geen sleutelwens",null,"Knipselmap",null,"x",null,3,"%",1.2000000000000002,"uur",null,1]
[]
[null,null,null,null,null,null,"Aantal werkuren p/week"]
[null,null,null,null,null,null,{"$f":"IF(G$107<>\"\", G$107, \"\")","v":40},null,{"$f":"IF(I$107>0, I$107, \"\")","v":100.00013000000001},"% Totaal"]
[]
[]
[]
[]
[]
[]
[]
[]
[]
[]
[]
[]
[]
[]
[]
[]
[]
[]
[]
[]
[]
[]
[]
[]
[]
[]
[]
[null,null,"STAP 8 | SLEUTELACTIE"]
[null,null,"HOE GA JE JE SLEUTELWENS(EN) BIJ VERSCHILLENDE TAKEN IN PRAKTIJK BRENGEN?"]
[]
[null,null,{"$f":"IF(AND(C323=\"Sleutelwens\", E323<>\"\"), E323, \"\")","v":"Schrijfwerk"},null,null,null,null,null,{"$f":"IF(AND(C324=\"Sleutelwens\", E324<>\"\"), E324, \"\")","v":"Social Media"},null,null,null,null,null,null,null,null,{"$f":"IF(AND(C325=\"Sleutelwens\", E325<>\"\"), E325, \"\")","v":"Interviews"}]
[]
[null,null,{"$f":"IFERROR(INDEX($E$139:$E$150, MATCH(C368, $G$139:$G$150, 0)), \"\")","v":"Kerntaak"},null,null,null,null,null,{"$f":"IFERROR(INDEX($E$139:$E$150, MATCH(I368, $G$139:$G$150, 0)), \"\")","v":"Extra taak"},null,null,null,null,null,null,null,null,{"$f":"IFERROR(INDEX($E$139:$E$150, MATCH(R368, $G$139:$G$150, 0)), \"\")","v":"Kerntaak"}]
[]
[null,null,{"$f":"IF(C368<>\"\", \"Over 2 jaar:\", \"\")","v":"Over 2 jaar:"},null,null,null,null,null,{"$f":"IF(I368<>\"\", C372, \"\")","v":"Over 2 jaar:"},null,null,null,null,null,null,null,null,{"$f":"IF(R368<>\"\", C372, \"\")","v":"Over 2 jaar:"}]
[null,null,{"$f":"IFERROR(INDEX($C$277:$C$288, MATCH(C368, $G$277:$G$288, 0)), \"\")","v":"Wil ik nog (+)"},null,null,null,null,null,{"$f":"IFERROR(INDEX($C$277:$C$288, MATCH(I368, $G$277:$G$288, 0)), \"\")","v":"Wil ik nog (+)"},null,null,null,null,null,null,null,null,{"$f":"IFERROR(INDEX($C$277:$C$288, MATCH(R368, $G$277:$G$288, 0)), \"\")","v":"Wil ik minder (−)"}]
[null,null,{"$f":"IFERROR(INDEX($E$277:$E$288, MATCH(C368, $G$277:$G$288, 0)), \"\")","v":"Kan ik slechter (−)"},null,null,null,null,null,{"$f":"IFERROR(INDEX($E$277:$E$288, MATCH(I368, $G$277:$G$288, 0)), \"\")","v":"Kan ik goed (+)"},null,null,null,null,null,null,null,null,{"$f":"IFERROR(INDEX($E$277:$E$288, MATCH(R368, $G$277:$G$288, 0)), \"\")","v":"Kan ik goed (+)"}]
[]
[null,null,{"$f":"IFERROR(INDEX($C$323:$C$334, MATCH(C368, $E$323:$E$334, 0)), \"\")","v":"Sleutelwens"},null,null,null,null,null,{"$f":"IFERROR(INDEX($C$323:$C$334, MATCH(I368, $E$323:$E$334, 0)), \"\")","v":"Sleutelwens"},null,null,null,null,null,null,null,null,{"$f":"IFERROR(INDEX($C$323:$C$334, MATCH(R368, $E$323:$E$334, 0)), \"\")","v":"Sleutelwens"}]
[null,null,{"$f":"IFERROR(INDEX($G$323:$G$334, MATCH(C368, $E$323:$E$334, 0)), \"\")","v":"Anders"},null,null,null,null,null,{"$f":"IFERROR(INDEX($G$323:$G$334, MATCH(I368, $E$323:$E$334, 0)), \"\")","v":"Groter"},null,null,null,null,null,null,null,null,{"$f":"IFERROR(INDEX($G$323:$G$334, MATCH(R368, $E$323:$E$334, 0)), \"\")","v":"Kleiner"}]
[]
[]
[null,null,{"$f":"IF(C368<>\"\", \"Hoe wil je aan deze taak sleutelen?\nBeschrijf wat je concreet gaat doen:\", \"\")","v":"Hoe wil je aan deze taak sleutelen?\nBeschrijf wat je concreet gaat doen:"},null,null,null,null,null,{"$f":"IF(I368<>\"\", C380, \"\")","v":"Hoe wil je aan deze taak sleutelen?\nBeschrijf wat je concreet gaat doen:"},null,null,null,null,null,null,null,null,{"$f":"IF(R368<>\"\", C380, \"\")","v":"Hoe wil je aan deze taak sleutelen?\nBeschrijf wat je concreet gaat doen:"}]
[null,null,null,null,null,null,null,null,"Ik ga een Twitterrubriek starten. Kijken of dat ook een deel van mijn interviews kan vervangen."]
[]
[]
[]
[]
[null,null,{"$f":"IF(C368<>\"\", \"Als het lukt, wat gaat je dat persoonlijk opleveren?\", \"\")","v":"Als het lukt, wat gaat je dat persoonlijk opleveren?"},null,null,null,null,null,{"$f":"IF(I368<>\"\", C386, \"\")","v":"Als het lukt, wat gaat je dat persoonlijk opleveren?"},null,null,null,null,null,null,null,null,{"$f":"IF(R368<>\"\", C386, \"\")","v":"Als het lukt, wat gaat je dat persoonlijk opleveren?"}]
[null,null,null,null,null,null,null,null,"Meer doen met wat ik leuk vind, waar ik in wil groeien. Minder reizen voor interviews."]
[]
[]
[]
[]
[null,null,{"$f":"IF(C368<>\"\", \"Wie heb je daarvoor nog nodig?\nHoe betrek / benader je diegene?\", \"\")","v":"Wie heb je daarvoor nog nodig?\nHoe betrek / benader je diegene?"},null,null,null,null,null,{"$f":"IF(I368<>\"\", C392, \"\")","v":"Wie heb je daarvoor nog nodig?\nHoe betrek / benader je diegene?"},null,null,null,null,null,null,null,null,{"$f":"IF(R368<>\"\", C392, \"\")","v":"Wie heb je daarvoor nog nodig?\nHoe betrek / benader je diegene?"}]
[null,null,null,null,null,null,null,null,"Ik maak een paar testrubrieken en leg deze voor bij het redactieteam in de vergadering. Vraag hoofdredacteur mee te denken."]
[]
[]
[]
[]
[]
[]
[]
[]
[]
[]
[null,null,"Sleutel ze!"]
[null,null,"Bekijk ook onze andere job/team crafting producten:",null,null,null,null,null,null,null,"www.debaaningenieurs.nl/producten"]

{"sheet":"Samenvatting","index":2,"n_rows":29,"n_cols":28,"rows_kept":29,"cut":false,"hidden":true,"merged":[[6,1,6,6],[16,8,16,10],[6,8,6,14],[17,8,17,10],[18,8,18,10],[4,8,4,10],[11,8,11,10],[12,8,12,10],[13,8,13,10],[14,8,14,10],[9,8,9,10],[10,8,10,10],[8,8,8,10],[7,27,8,27],[6,16,6,20],[6,22,6,25],[19,8,19,10],[20,8,20,10],[15,8,15,10]]}
[]
[]
[null,"TOTAALBEELD"]
[null,"SAMENVATTING VAN WAT JE IN ACHT STAPPEN BIJ ELKE TAAK HEBT INGEVULD"]
[]
[]
[null,"WELKE TAKEN DOE JE EN HOEVEEL?",null,null,null,null,null,null,"WAT ZIJN DE KENMERKEN\nVAN DEZE TAKEN?",null,null,null,null,null,null,null,"HOE GOED PASSEN DEZE TAKEN BIJ JE?",null,null,null,null,null,"WAT WIL EN KUN JE\nOVER 2 JAAR NOG?",null,null,null,null,"WAARAAN WIL JE\nSLEUTELEN?"]
[null,null,null,null,null,null,null,null,null,null,null,null,null,null,null,null,null,null,null,null,null,null,null,null,null,null,null,"Sleutelwens- en richting?"]
[null,"Afzonderlijke taken",null,"% Taaktijd",null,"Uur p/week",null,null,"Kerntaak?",null,null,null,"Begin/Later?",null,"Krimp/Groei?",null,"Taakfit","Geeft energie? (+)",null,"Kost energie? (−)",null,null,"(Minder) willen?",null,"(Slechter) kunnen?"]
[null,{"$f":"IF('Mooi Werk Excel'!E323<>\"\", 'Mooi Werk Excel'!E323, \"\")","v":"Schrijfwerk"},null,{"$f":"IF('Mooi Werk Excel'!I323<>\"\", ROUND('Mooi Werk Excel'!I323, 0), \"\")","v":25},{"$f":"IF(D10<>\"\", \"%\", \"\")","v":"%"},{"$f":"IF('Mooi Werk Excel'!K323<>\"\", ROUND('Mooi Werk Excel'!K323, 1), \"\")","v":10},{"$f":"IF(F10<>\"\", \"uur\", \"\")","v":"uur"},null,{"$f":"IF(B10<>\"\", INDEX('Mooi Werk Excel'!$E$139:$E$150, MATCH(B10, 'Mooi Werk Excel'!$G$139:$G$150, 0)), \"\")","v":"Kerntaak"},null,null,null,{"$f":"IF(B10<>\"\", INDEX('Mooi Werk Excel'!$C$185:$C$196, MATCH(B10, 'Mooi Werk Excel'!$G$185:$G$196, 0)), \"\")","v":"Vanaf begin"},null,{"$f":"IF(B10<>\"\", INDEX('Mooi Werk Excel'!$E$185:$E$196, MATCH(B10, 'Mooi Werk Excel'!$G$185:$G$196, 0)), \"\")","v":"krimptaak"},null,{"$f":"IF(B10<>\"\", INDEX('Mooi Werk Excel'!$AU$231:$AU$242, MATCH(B10, 'Mooi Werk Excel'!$G$231:$G$242, 0)), \"\")","v":"2-Faced"},{"$f":"IF(B10<>\"\", INDEX('Mooi Werk Excel'!$C$231:$C$242, MATCH(B10, 'Mooi Werk Excel'!$G$231:$G$242, 0)), \"\")","v":"Geeft veel energie"},null,{"$f":"IF(B10<>\"\", INDEX('Mooi Werk Excel'!$E$231:$E$242, MATCH(B10, 'Mooi Werk Excel'!$G$231:$G$242, 0)), \"\")","v":"Kost veel energie"},null,null,{"$f":"IF(B10<>\"\", INDEX('Mooi Werk Excel'!$C$277:$C$288, MATCH(B10, 'Mooi Werk Excel'!$G$277:$G$288, 0)), \"\")","v":"Wil ik nog (+)"},null,{"$f":"IF(B10<>\"\", INDEX('Mooi Werk Excel'!$E$277:$E$288, MATCH(B10, 'Mooi Werk Excel'!$G$277:$G$288, 0)), \"\")","v":"Kan ik slechter (−)"},null,null,{"$f":"IF(B10<>\"\", IF('Mooi Werk Excel'!G323<>\"\", INDEX('Mooi Werk Excel'!$G$323:$G$334, MATCH(B10, 'Mooi Werk Excel'!$E$323:$E$334, 0)), \"\"), \"\")","v":"Anders"}]
[null,{"$f":"IF('Mooi Werk Excel'!E324<>\"\", 'Mooi Werk Excel'!E324, \"\")","v":"Social Media"},null,{"$f":"IF('Mooi Werk Excel'!I324<>\"\", ROUND('Mooi Werk Excel'!I324, 0), \"\")","v":10},{"$f":"IF(D11<>\"\", \"%\", \"\")","v":"%"},{"$f":"IF('Mooi Werk Excel'!K324<>\"\", ROUND('Mooi Werk Excel'!K324, 1), \"\")","v":4},{"$f":"IF(F11<>\"\", \"uur\", \"\")","v":"uur"},null,{"$f":"IF(B11<>\"\", INDEX('Mooi Werk Excel'!$E$139:$E$150, MATCH(B11, 'Mooi Werk Excel'!$G$139:$G$150, 0)), \"\")","v":"Extra taak"},null,null,null,{"$f":"IF(B11<>\"\", INDEX('Mooi Werk Excel'!$C$185:$C$196, MATCH(B11, 'Mooi Werk Excel'!$G$185:$G$196, 0)), \"\")","v":"Later erbij"},null,{"$f":"IF(B11<>\"\", INDEX('Mooi Werk Excel'!$E$185:$E$196, MATCH(B11, 'Mooi Werk Excel'!$G$185:$G$196, 0)), \"\")","v":"GROEITAAK"},null,{"$f":"IF(B11<>\"\", INDEX('Mooi Werk Excel'!$AU$231:$AU$242, MATCH(B11, 'Mooi Werk Excel'!$G$231:$G$242, 0)), \"\")","v":"Mooi"},{"$f":"IF(B11<>\"\", INDEX('Mooi Werk Excel'!$C$231:$C$242, MATCH(B11, 'Mooi Werk Excel'!$G$231:$G$242, 0)), \"\")","v":"Geeft veel energie"},null,{"$f":"IF(B11<>\"\", INDEX('Mooi Werk Excel'!$E$231:$E$242, MATCH(B11, 'Mooi Werk Excel'!$G$231:$G$242, 0)), \"\")","v":"Kost weinig energie"},null,null,{"$f":"IF(B11<>\"\", INDEX('Mooi Werk Excel'!$C$277:$C$288, MATCH(B11, 'Mooi Werk Excel'!$G$277:$G$288, 0)), \"\")","v":"Wil ik nog (+)"},null,{"$f":"IF(B11<>\"\", INDEX('Mooi Werk Excel'!$E$277:$E$288, MATCH(B11, 'Mooi Werk Excel'!$G$277:$G$288, 0)), \"\")","v":"Kan ik goed (+)"},null,null,{"$f":"IF(B11<>\"\", IF('Mooi Werk Excel'!G324<>\"\", INDEX('Mooi Werk Excel'!$G$323:$G$334, MATCH(B11, 'Mooi Werk Excel'!$E$323:$E$334, 0)), \"\"), \"\")","v":"Groter"}]
[null,{"$f":"IF('Mooi Werk Excel'!E325<>\"\", 'Mooi Werk Excel'!E325, \"\")","v":"Interviews"},null,{"$f":"IF('Mooi Werk Excel'!I325<>\"\", ROUND('Mooi Werk Excel'!I325, 0), \"\")","v":5},"%",{"$f":"IF('Mooi Werk Excel'!K325<>\"\", ROUND('Mooi Werk Excel'!K325, 1), \"\")","v":2},"uur",null,{"$f":"IF(B12<>\"\", INDEX('Mooi Werk Excel'!$E$139:$E$150, MATCH(B12, 'Mooi Werk Excel'!$G$139:$G$150, 0)), \"\")","v":"Kerntaak"},null,null,null,{"$f":"IF(B12<>\"\", INDEX('Mooi Werk Excel'!$C$185:$C$196, MATCH(B12, 'Mooi Werk Excel'!$G$185:$G$196, 0)), \"\")","v":"Vanaf begin"},null,{"$f":"IF(B12<>\"\", INDEX('Mooi Werk Excel'!$E$185:$E$196, MATCH(B12, 'Mooi Werk Excel'!$G$185:$G$196, 0)), \"\")","v":"GROEITAAK"},null,{"$f":"IF(B12<>\"\", INDEX('Mooi Werk Excel'!$AU$231:$AU$242, MATCH(B12, 'Mooi Werk Excel'!$G$231:$G$242, 0)), \"\")","v":"Risico"},{"$f":"IF(B12<>\"\", INDEX('Mooi Werk Excel'!$C$231:$C$242, MATCH(B12, 'Mooi Werk Excel'!$G$231:$G$242, 0)), \"\")","v":"Geeft weinig energie"},null,{"$f":"IF(B12<>\"\", INDEX('Mooi Werk Excel'!$E$231:$E$242, MATCH(B12, 'Mooi Werk Excel'!$G$231:$G$242, 0)), \"\")","v":"Kost veel energie"},null,null,{"$f":"IF(B12<>\"\", INDEX('Mooi Werk Excel'!$C$277:$C$288, MATCH(B12, 'Mooi Werk Excel'!$G$277:$G$288, 0)), \"\")","v":"Wil ik minder (−)"},null,{"$f":"IF(B12<>\"\", INDEX('Mooi Werk Excel'!$E$277:$E$288, MATCH(B12, 'Mooi Werk Excel'!$G$277:$G$288, 0)), \"\")","v":"Kan ik goed (+)"},null,null,{"$f":"IF(B12<>\"\", IF('Mooi Werk Excel'!G325<>\"\", INDEX('Mooi Werk Excel'!$G$323:$G$334, MATCH(B12, 'Mooi Werk Excel'!$E$323:$E$334, 0)), \"\"), \"\")","v":"Kleiner"}]
[null,{"$f":"IF('Mooi Werk Excel'!E326<>\"\", 'Mooi Werk Excel'!E326, \"\")","v":"Vergaderen"},null,{"$f":"IF('Mooi Werk Excel'!I326<>\"\", ROUND('Mooi Werk Excel'!I326, 0), \"\")","v":15},"%",{"$f":"IF('Mooi Werk Excel'!K326<>\"\", ROUND('Mooi Werk Excel'!K326, 1), \"\")","v":6},"uur",null,{"$f":"IF(B13<>\"\", INDEX('Mooi Werk Excel'!$E$139:$E$150, MATCH(B13, 'Mooi Werk Excel'!$G$139:$G$150, 0)), \"\")","v":"Niet-Kerntaak"},null,null,null,{"$f":"IF(B13<>\"\", INDEX('Mooi Werk Excel'!$C$185:$C$196, MATCH(B13, 'Mooi Werk Excel'!$G$185:$G$196, 0)), \"\")","v":"Vanaf begin"},null,{"$f":"IF(B13<>\"\", INDEX('Mooi Werk Excel'!$E$185:$E$196, MATCH(B13, 'Mooi Werk Excel'!$G$185:$G$196, 0)), \"\")","v":"GROEITAAK"},null,{"$f":"IF(B13<>\"\", INDEX('Mooi Werk Excel'!$AU$231:$AU$242, MATCH(B13, 'Mooi Werk Excel'!$G$231:$G$242, 0)), \"\")","v":"Risico"},{"$f":"IF(B13<>\"\", INDEX('Mooi Werk Excel'!$C$231:$C$242, MATCH(B13, 'Mooi Werk Excel'!$G$231:$G$242, 0)), \"\")","v":"Geeft weinig energie"},null,{"$f":"IF(B13<>\"\", INDEX('Mooi Werk Excel'!$E$231:$E$242, MATCH(B13, 'Mooi Werk Excel'!$G$231:$G$242, 0)), \"\")","v":"Kost veel energie"},null,null,{"$f":"IF(B13<>\"\", INDEX('Mooi Werk Excel'!$C$277:$C$288, MATCH(B13, 'Mooi Werk Excel'!$G$277:$G$288, 0)), \"\")","v":"Wil ik minder (−)"},null,{"$f":"IF(B13<>\"\", INDEX('Mooi Werk Excel'!$E$277:$E$288, MATCH(B13, 'Mooi Werk Excel'!$G$277:$G$288, 0)), \"\")","v":"Kan ik slechter (−)"},null,null,{"$f":"IF(B13<>\"\", IF('Mooi Werk Excel'!G326<>\"\", INDEX('Mooi Werk Excel'!$G$323:$G$334, MATCH(B13, 'Mooi Werk Excel'!$E$323:$E$334, 0)), \"\"), \"\")","v":"x"}]
[null,{"$f":"IF('Mooi Werk Excel'!E327<>\"\", 'Mooi Werk Excel'!E327, \"\")","v":"Beeld zoeken"},null,{"$f":"IF('Mooi Werk Excel'!I327<>\"\", ROUND('Mooi Werk Excel'!I327, 0), \"\")","v":15},"%",{"$f":"IF('Mooi Werk Excel'!K327<>\"\", ROUND('Mooi Werk Excel'!K327, 1), \"\")","v":6},"uur",null,{"$f":"IF(B14<>\"\", INDEX('Mooi Werk Excel'!$E$139:$E$150, MATCH(B14, 'Mooi Werk Excel'!$G$139:$G$150, 0)), \"\")","v":"Kerntaak"},null,null,null,{"$f":"IF(B14<>\"\", INDEX('Mooi Werk Excel'!$C$185:$C$196, MATCH(B14, 'Mooi Werk Excel'!$G$185:$G$196, 0)), \"\")","v":"Vanaf begin"},null,{"$f":"IF(B14<>\"\", INDEX('Mooi Werk Excel'!$E$185:$E$196, MATCH(B14, 'Mooi Werk Excel'!$G$185:$G$196, 0)), \"\")","v":"krimptaak"},null,{"$f":"IF(B14<>\"\", INDEX('Mooi Werk Excel'!$AU$231:$AU$242, MATCH(B14, 'Mooi Werk Excel'!$G$231:$G$242, 0)), \"\")","v":"Mooi"},{"$f":"IF(B14<>\"\", INDEX('Mooi Werk Excel'!$C$231:$C$242, MATCH(B14, 'Mooi Werk Excel'!$G$231:$G$242, 0)), \"\")","v":"Geeft veel energie"},null,{"$f":"IF(B14<>\"\", INDEX('Mooi Werk Excel'!$E$231:$E$242, MATCH(B14, 'Mooi Werk Excel'!$G$231:$G$242, 0)), \"\")","v":"Kost weinig energie"},null,null,{"$f":"IF(B14<>\"\", INDEX('Mooi Werk Excel'!$C$277:$C$288, MATCH(B14, 'Mooi Werk Excel'!$G$277:$G$288, 0)), \"\")","v":"Wil ik nog (+)"},null,{"$f":"IF(B14<>\"\", INDEX('Mooi Werk Excel'!$E$277:$E$288, MATCH(B14, 'Mooi Werk Excel'!$G$277:$G$288, 0)), \"\")","v":"Kan ik goed (+)"},null,null,{"$f":"IF(B14<>\"\", IF('Mooi Werk Excel'!G327<>\"\", INDEX('Mooi Werk Excel'!$G$323:$G$334, MATCH(B14, 'Mooi Werk Excel'!$E$323:$E$334, 0)), \"\"), \"\")","v":"x"}]
[null,{"$f":"IF('Mooi Werk Excel'!E328<>\"\", 'Mooi Werk Excel'!E328, \"\")","v":"Website"},null,{"$f":"IF('Mooi Werk Excel'!I328<>\"\", ROUND('Mooi Werk Excel'!I328, 0), \"\")","v":10},"%",{"$f":"IF('Mooi Werk Excel'!K328<>\"\", ROUND('Mooi Werk Excel'!K328, 1), \"\")","v":4},"uur",null,{"$f":"IF(B15<>\"\", INDEX('Mooi Werk Excel'!$E$139:$E$150, MATCH(B15, 'Mooi Werk Excel'!$G$139:$G$150, 0)), \"\")","v":"Extra taak"},null,null,null,{"$f":"IF(B15<>\"\", INDEX('Mooi Werk Excel'!$C$185:$C$196, MATCH(B15, 'Mooi Werk Excel'!$G$185:$G$196, 0)), \"\")","v":"Later erbij"},null,{"$f":"IF(B15<>\"\", INDEX('Mooi Werk Excel'!$E$185:$E$196, MATCH(B15, 'Mooi Werk Excel'!$G$185:$G$196, 0)), \"\")","v":"GROEITAAK"},null,{"$f":"IF(B15<>\"\", INDEX('Mooi Werk Excel'!$AU$231:$AU$242, MATCH(B15, 'Mooi Werk Excel'!$G$231:$G$242, 0)), \"\")","v":"Mooi"},{"$f":"IF(B15<>\"\", INDEX('Mooi Werk Excel'!$C$231:$C$242, MATCH(B15, 'Mooi Werk Excel'!$G$231:$G$242, 0)), \"\")","v":"Geeft veel energie"},null,{"$f":"IF(B15<>\"\", INDEX('Mooi Werk Excel'!$E$231:$E$242, MATCH(B15, 'Mooi Werk Excel'!$G$231:$G$242, 0)), \"\")","v":"Kost weinig energie"},null,null,{"$f":"IF(B15<>\"\", INDEX('Mooi Werk Excel'!$C$277:$C$288, MATCH(B15, 'Mooi Werk Excel'!$G$277:$G$288, 0)), \"\")","v":"Wil ik nog (+)"},null,{"$f":"IF(B15<>\"\", INDEX('Mooi Werk Excel'!$E$277:$E$288, MATCH(B15, 'Mooi Werk Excel'!$G$277:$G$288, 0)), \"\")","v":"Kan ik goed (+)"},null,null,{"$f":"IF(B15<>\"\", IF('Mooi Werk Excel'!G328<>\"\", INDEX('Mooi Werk Excel'!$G$323:$G$334, MATCH(B15, 'Mooi Werk Excel'!$E$323:$E$334, 0)), \"\"), \"\")","v":"x"}]
[null,{"$f":"IF('Mooi Werk Excel'!E329<>\"\", 'Mooi Werk Excel'!E329, \"\")","v":"Nieuws bijhouden"},null,{"$f":"IF('Mooi Werk Excel'!I329<>\"\", ROUND('Mooi Werk Excel'!I329, 0), \"\")","v":5},"%",{"$f":"IF('Mooi Werk Excel'!K329<>\"\", ROUND('Mooi Werk Excel'!K329, 1), \"\")","v":2},"uur",null,{"$f":"IF(B16<>\"\", INDEX('Mooi Werk Excel'!$E$139:$E$150, MATCH(B16, 'Mooi Werk Excel'!$G$139:$G$150, 0)), \"\")","v":"Extra taak"},null,null,null,{"$f":"IF(B16<>\"\", INDEX('Mooi Werk Excel'!$C$185:$C$196, MATCH(B16, 'Mooi Werk Excel'!$G$185:$G$196, 0)), \"\")","v":"Later erbij"},null,{"$f":"IF(B16<>\"\", INDEX('Mooi Werk Excel'!$E$185:$E$196, MATCH(B16, 'Mooi Werk Excel'!$G$185:$G$196, 0)), \"\")","v":"GROEITAAK"},null,{"$f":"IF(B16<>\"\", INDEX('Mooi Werk Excel'!$AU$231:$AU$242, MATCH(B16, 'Mooi Werk Excel'!$G$231:$G$242, 0)), \"\")","v":"2-Faced"},{"$f":"IF(B16<>\"\", INDEX('Mooi Werk Excel'!$C$231:$C$242, MATCH(B16, 'Mooi Werk Excel'!$G$231:$G$242, 0)), \"\")","v":"Geeft veel energie"},null,{"$f":"IF(B16<>\"\", INDEX('Mooi Werk Excel'!$E$231:$E$242, MATCH(B16, 'Mooi Werk Excel'!$G$231:$G$242, 0)), \"\")","v":"Kost veel energie"},null,null,{"$f":"IF(B16<>\"\", INDEX('Mooi Werk Excel'!$C$277:$C$288, MATCH(B16, 'Mooi Werk Excel'!$G$277:$G$288, 0)), \"\")","v":"Wil ik nog (+)"},null,{"$f":"IF(B16<>\"\", INDEX('Mooi Werk Excel'!$E$277:$E$288, MATCH(B16, 'Mooi Werk Excel'!$G$277:$G$288, 0)), \"\")","v":"Kan ik goed (+)"},null,null,{"$f":"IF(B16<>\"\", IF('Mooi Werk Excel'!G329<>\"\", INDEX('Mooi Werk Excel'!$G$323:$G$334, MATCH(B16, 'Mooi Werk Excel'!$E$323:$E$334, 0)), \"\"), \"\")","v":"x"}]
[null,{"$f":"IF('Mooi Werk Excel'!E330<>\"\", 'Mooi Werk Excel'!E330, \"\")","v":"Nieuwsbrief"},null,{"$f":"IF('Mooi Werk Excel'!I330<>\"\", ROUND('Mooi Werk Excel'!I330, 0), \"\")","v":3},"%",{"$f":"IF('Mooi Werk Excel'!K330<>\"\", ROUND('Mooi Werk Excel'!K330, 1), \"\")","v":1.2},"uur",null,{"$f":"IF(B17<>\"\", INDEX('Mooi Werk Excel'!$E$139:$E$150, MATCH(B17, 'Mooi Werk Excel'!$G$139:$G$150, 0)), \"\")","v":"Extra taak"},null,null,null,{"$f":"IF(B17<>\"\", INDEX('Mooi Werk Excel'!$C$185:$C$196, MATCH(B17, 'Mooi Werk Excel'!$G$185:$G$196, 0)), \"\")","v":"Later erbij"},null,{"$f":"IF(B17<>\"\", INDEX('Mooi Werk Excel'!$E$185:$E$196, MATCH(B17, 'Mooi Werk Excel'!$G$185:$G$196, 0)), \"\")","v":"GROEITAAK"},null,{"$f":"IF(B17<>\"\", INDEX('Mooi Werk Excel'!$AU$231:$AU$242, MATCH(B17, 'Mooi Werk Excel'!$G$231:$G$242, 0)), \"\")","v":"Mooi"},{"$f":"IF(B17<>\"\", INDEX('Mooi Werk Excel'!$C$231:$C$242, MATCH(B17, 'Mooi Werk Excel'!$G$231:$G$242, 0)), \"\")","v":"Geeft veel energie"},null,{"$f":"IF(B17<>\"\", INDEX('Mooi Werk Excel'!$E$231:$E$242, MATCH(B17, 'Mooi Werk Excel'!$G$231:$G$242, 0)), \"\")","v":"Kost weinig energie"},null,null,{"$f":"IF(B17<>\"\", INDEX('Mooi Werk Excel'!$C$277:$C$288, MATCH(B17, 'Mooi Werk Excel'!$G$277:$G$288, 0)), \"\")","v":"Wil ik nog (+)"},null,{"$f":"IF(B17<>\"\", INDEX('Mooi Werk Excel'!$E$277:$E$288, MATCH(B17, 'Mooi Werk Excel'!$G$277:$G$288, 0)), \"\")","v":"Kan ik goed (+)"},null,null,{"$f":"IF(B17<>\"\", IF('Mooi Werk Excel'!G330<>\"\", INDEX('Mooi Werk Excel'!$G$323:$G$334, MATCH(B17, 'Mooi Werk Excel'!$E$323:$E$334, 0)), \"\"), \"\")","v":"x"}]
[null,{"$f":"IF('Mooi Werk Excel'!E331<>\"\", 'Mooi Werk Excel'!E331, \"\")","v":"Research"},null,{"$f":"IF('Mooi Werk Excel'!I331<>\"\", ROUND('Mooi Werk Excel'!I331, 0), \"\")","v":3},"%",{"$f":"IF('Mooi Werk Excel'!K331<>\"\", ROUND('Mooi Werk Excel'!K331, 1), \"\")","v":1.2},"uur",null,{"$f":"IF(B18<>\"\", INDEX('Mooi Werk Excel'!$E$139:$E$150, MATCH(B18, 'Mooi Werk Excel'!$G$139:$G$150, 0)), \"\")","v":"Kerntaak"},null,null,null,{"$f":"IF(B18<>\"\", INDEX('Mooi Werk Excel'!$C$185:$C$196, MATCH(B18, 'Mooi Werk Excel'!$G$185:$G$196, 0)), \"\")","v":"Vanaf begin"},null,{"$f":"IF(B18<>\"\", INDEX('Mooi Werk Excel'!$E$185:$E$196, MATCH(B18, 'Mooi Werk Excel'!$G$185:$G$196, 0)), \"\")","v":"GROEITAAK"},null,{"$f":"IF(B18<>\"\", INDEX('Mooi Werk Excel'!$AU$231:$AU$242, MATCH(B18, 'Mooi Werk Excel'!$G$231:$G$242, 0)), \"\")","v":"2-Faced"},{"$f":"IF(B18<>\"\", INDEX('Mooi Werk Excel'!$C$231:$C$242, MATCH(B18, 'Mooi Werk Excel'!$G$231:$G$242, 0)), \"\")","v":"Geeft veel energie"},null,{"$f":"IF(B18<>\"\", INDEX('Mooi Werk Excel'!$E$231:$E$242, MATCH(B18, 'Mooi Werk Excel'!$G$231:$G$242, 0)), \"\")","v":"Kost veel energie"},null,null,{"$f":"IF(B18<>\"\", INDEX('Mooi Werk Excel'!$C$277:$C$288, MATCH(B18, 'Mooi Werk Excel'!$G$277:$G$288, 0)), \"\")","v":"Wil ik minder (−)"},null,{"$f":"IF(B18<>\"\", INDEX('Mooi Werk Excel'!$E$277:$E$288, MATCH(B18, 'Mooi Werk Excel'!$G$277:$G$288, 0)), \"\")","v":"Kan ik goed (+)"},null,null,{"$f":"IF(B18<>\"\", IF('Mooi Werk Excel'!G331<>\"\", INDEX('Mooi Werk Excel'!$G$323:$G$334, MATCH(B18, 'Mooi Werk Excel'!$E$323:$E$334, 0)), \"\"), \"\")","v":"x"}]
[null,{"$f":"IF('Mooi Werk Excel'!E332<>\"\", 'Mooi Werk Excel'!E332, \"\")","v":"Andere bladen"},null,{"$f":"IF('Mooi Werk Excel'!I332<>\"\", ROUND('Mooi Werk Excel'!I332, 0), \"\")","v":3},"%",{"$f":"IF('Mooi Werk Excel'!K332<>\"\", ROUND('Mooi Werk Excel'!K332, 1), \"\")","v":1.2},"uur",null,{"$f":"IF(B19<>\"\", INDEX('Mooi Werk Excel'!$E$139:$E$150, MATCH(B19, 'Mooi Werk Excel'!$G$139:$G$150, 0)), \"\")","v":"Niet-Kerntaak"},null,null,null,{"$f":"IF(B19<>\"\", INDEX('Mooi Werk Excel'!$C$185:$C$196, MATCH(B19, 'Mooi Werk Excel'!$G$185:$G$196, 0)), \"\")","v":"Later erbij"},null,{"$f":"IF(B19<>\"\", INDEX('Mooi Werk Excel'!$E$185:$E$196, MATCH(B19, 'Mooi Werk Excel'!$G$185:$G$196, 0)), \"\")","v":"krimptaak"},null,{"$f":"IF(B19<>\"\", INDEX('Mooi Werk Excel'!$AU$231:$AU$242, MATCH(B19, 'Mooi Werk Excel'!$G$231:$G$242, 0)), \"\")","v":"Leeg"},{"$f":"IF(B19<>\"\", INDEX('Mooi Werk Excel'!$C$231:$C$242, MATCH(B19, 'Mooi Werk Excel'!$G$231:$G$242, 0)), \"\")","v":"Geeft weinig energie"},null,{"$f":"IF(B19<>\"\", INDEX('Mooi Werk Excel'!$E$231:$E$242, MATCH(B19, 'Mooi Werk Excel'!$G$231:$G$242, 0)), \"\")","v":"Kost weinig energie"},null,null,{"$f":"IF(B19<>\"\", INDEX('Mooi Werk Excel'!$C$277:$C$288, MATCH(B19, 'Mooi Werk Excel'!$G$277:$G$288, 0)), \"\")","v":"Wil ik nog (+)"},null,{"$f":"IF(B19<>\"\", INDEX('Mooi Werk Excel'!$E$277:$E$288, MATCH(B19, 'Mooi Werk Excel'!$G$277:$G$288, 0)), \"\")","v":"Kan ik goed (+)"},null,null,{"$f":"IF(B19<>\"\", IF('Mooi Werk Excel'!G332<>\"\", INDEX('Mooi Werk Excel'!$G$323:$G$334, MATCH(B19, 'Mooi Werk Excel'!$E$323:$E$334, 0)), \"\"), \"\")","v":"x"}]
[null,{"$f":"IF('Mooi Werk Excel'!E333<>\"\", 'Mooi Werk Excel'!E333, \"\")","v":"Telefoon"},null,{"$f":"IF('Mooi Werk Excel'!I333<>\"\", ROUND('Mooi Werk Excel'!I333, 0), \"\")","v":3},"%",{"$f":"IF('Mooi Werk Excel'!K333<>\"\", ROUND('Mooi Werk Excel'!K333, 1), \"\")","v":1.2},"uur",null,{"$f":"IF(B20<>\"\", INDEX('Mooi Werk Excel'!$E$139:$E$150, MATCH(B20, 'Mooi Werk Excel'!$G$139:$G$150, 0)), \"\")","v":"Niet-Kerntaak"},null,null,null,{"$f":"IF(B20<>\"\", INDEX('Mooi Werk Excel'!$C$185:$C$196, MATCH(B20, 'Mooi Werk Excel'!$G$185:$G$196, 0)), \"\")","v":"Vanaf begin"},null,{"$f":"IF(B20<>\"\", INDEX('Mooi Werk Excel'!$E$185:$E$196, MATCH(B20, 'Mooi Werk Excel'!$G$185:$G$196, 0)), \"\")","v":"GROEITAAK"},null,{"$f":"IF(B20<>\"\", INDEX('Mooi Werk Excel'!$AU$231:$AU$242, MATCH(B20, 'Mooi Werk Excel'!$G$231:$G$242, 0)), \"\")","v":"Leeg"},{"$f":"IF(B20<>\"\", INDEX('Mooi Werk Excel'!$C$231:$C$242, MATCH(B20, 'Mooi Werk Excel'!$G$231:$G$242, 0)), \"\")","v":"Geeft weinig energie"},null,{"$f":"IF(B20<>\"\", INDEX('Mooi Werk Excel'!$E$231:$E$242, MATCH(B20, 'Mooi Werk Excel'!$G$231:$G$242, 0)), \"\")","v":"Kost weinig energie"},null,null,{"$f":"IF(B20<>\"\", INDEX('Mooi Werk Excel'!$C$277:$C$288, MATCH(B20, 'Mooi Werk Excel'!$G$277:$G$288, 0)), \"\")","v":"Wil ik minder (−)"},null,{"$f":"IF(B20<>\"\", INDEX('Mooi Werk Excel'!$E$277:$E$288, MATCH(B20, 'Mooi Werk Excel'!$G$277:$G$288, 0)), \"\")","v":"Kan ik slechter (−)"},null,null,{"$f":"IF(B20<>\"\", IF('Mooi Werk Excel'!G333<>\"\", INDEX('Mooi Werk Excel'!$G$323:$G$334, MATCH(B20, 'Mooi Werk Excel'!$E$323:$E$334, 0)), \"\"), \"\")","v":"x"}]
[null,{"$f":"IF('Mooi Werk Excel'!E334<>\"\", 'Mooi Werk Excel'!E334, \"\")","v":"Knipselmap"},null,{"$f":"IF('Mooi Werk Excel'!I334<>\"\", ROUND('Mooi Werk Excel'!I334, 0), \"\")","v":3},"%",{"$f":"IF('Mooi Werk Excel'!K334<>\"\", ROUND('Mooi Werk Excel'!K334, 1), \"\")","v":1.2},"uur",null,{"$f":"IF(B21<>\"\", INDEX('Mooi Werk Excel'!$E$139:$E$150, MATCH(B21, 'Mooi Werk Excel'!$G$139:$G$150, 0)), \"\")","v":"Niet-Kerntaak"},null,null,null,{"$f":"IF(B21<>\"\", INDEX('Mooi Werk Excel'!$C$185:$C$196, MATCH(B21, 'Mooi Werk Excel'!$G$185:$G$196, 0)), \"\")","v":"Later erbij"},null,{"$f":"IF(B21<>\"\", INDEX('Mooi Werk Excel'!$E$185:$E$196, MATCH(B21, 'Mooi Werk Excel'!$G$185:$G$196, 0)), \"\")","v":"krimptaak"},null,{"$f":"IF(B21<>\"\", INDEX('Mooi Werk Excel'!$AU$231:$AU$242, MATCH(B21, 'Mooi Werk Excel'!$G$231:$G$242, 0)), \"\")","v":"Leeg"},{"$f":"IF(B21<>\"\", INDEX('Mooi Werk Excel'!$C$231:$C$242, MATCH(B21, 'Mooi Werk Excel'!$G$231:$G$242, 0)), \"\")","v":"Geeft weinig energie"},null,{"$f":"IF(B21<>\"\", INDEX('Mooi Werk Excel'!$E$231:$E$242, MATCH(B21, 'Mooi Werk Excel'!$G$231:$G$242, 0)), \"\")","v":"Kost weinig energie"},null,null,{"$f":"IF(B21<>\"\", INDEX('Mooi Werk Excel'!$C$277:$C$288, MATCH(B21, 'Mooi Werk Excel'!$G$277:$G$288, 0)), \"\")","v":"Wil ik minder (−)"},null,{"$f":"IF(B21<>\"\", INDEX('Mooi Werk Excel'!$E$277:$E$288, MATCH(B21, 'Mooi Werk Excel'!$G$277:$G$288, 0)), \"\")","v":"Kan ik slechter (−)"},null,null,{"$f":"IF(B21<>\"\", IF('Mooi Werk Excel'!G334<>\"\", INDEX('Mooi Werk Excel'!$G$323:$G$334, MATCH(B21, 'Mooi Werk Excel'!$E$323:$E$334, 0)), \"\"), \"\")","v":"x"}]
[]
[]
[]
[]
[]
[]
[]
[null,null,null,null,null,null,null,null,null,null,null,null,null,null,"Bij ‘teamanalyse’ mail: info@mooiwerkboek.nl"]

{"sheet":"Dropdown","index":3,"n_rows":11,"n_cols":14,"rows_kept":11,"cut":false,"hidden":true,"merged":[]}
[3,"Extra taak","Later erbij","GROEITAAK","Wil ik minder (−)","Kan ik goed (+)","Kost veel energie","Geeft veel energie","Geen sleutelwens","Anders","Werkmodus=0","Licentiecode","‘Teller’","Zoom"]
[5,"Kerntaak","Vanaf begin","krimptaak","Wil ik nog (+)","Kan ik slechter (−)","Kost weinig energie","Geeft weinig energie","Sleutelwens","Groter","Presentatiemodus=1","N.v.t.",0,75]
[10,"Niet-Kerntaak",null,null,null,null,null,null,null,"Kleiner",0,null,null,{"$f":"IF(N2=75, \"75%, zoom in naar 110%\", IF(N2=110, \"110%, zoom in naar 130%\", \"130%, zoom out naar 75%\"))","v":"75%, zoom in naar 110%"}]
[15,null,null,null,null,null,null,null,null,"Upskilling",{"$f":"\"Deze demoversie kan na deze ‘sessie’ nog \" & 25-M2 & \" keer worden gebruikt.\"","v":"Deze demoversie kan na deze ‘sessie’ nog 25 keer worden gebruikt."}]
[20,null,null,null,null,null,null,null,null,"x"]
[25]
[30]
[35]
[40]
[45]
[50]